fUST/lending_fUST_20250720
["ID","MTS","AMOUNT","RATE_DAILY","PERIOD"]
[373427692,1753001444822,-270.85,0.00018063,2]
[373427693,1753001444831,-572.37993641,0.00018063,2]
[373427694,1753001444840,-460.0,0.00018063,2]
[373427695,1753001444851,-460.0,0.00018064,2]
[373427696,1753001444860,-460.0,0.00018064,2]
[373427697,1753001444870,-460.0,0.00018064,2]
[373427698,1753001444880,-252.90170744,0.00018064,2]
[373427699,1753001444889,-460.0,0.00018064,2]
[373427700,1753001444902,-460.0,0.00018064,2]
[373427701,1753001444912,-460.0,0.00018064,2]
[373427702,1753001444922,-460.0,0.00018064,2]
[373427703,1753001444931,-460.0,0.00018064,2]
[373427704,1753001444940,-460.0,0.00018064,2]
[373427705,1753001444950,-542.52178713,0.00018064,2]
[373427706,1753001444960,-460.0,0.00018064,2]
[373427707,1753001444969,-460.0,0.00018064,2]
[373427708,1753001444979,-460.0,0.00018064,2]
[373427709,1753001444988,-460.0,0.00018064,2]
[373427710,1753001444998,-498.36,0.00018064,2]
[373427711,1753001445007,-500.0,0.00018064,2]
[373427712,1753001445017,-1645.4,0.00018065,2]
[373427713,1753001445031,-663.41,0.00018065,2]
[373427714,1753001445047,-460.0,0.00018065,2]
[373427715,1753001445057,-548.92,0.00018065,2]
[373427716,1753001445075,-460.0,0.00018065,2]
[373427717,1753001445090,-2182.68,0.00018065,2]
[373427718,1753001445102,-891.37,0.00018065,2]
[373427719,1753001445112,-932.02,0.00018066,2]
[373427720,1753001445122,-531.09,0.00018066,2]
[373427721,1753001445134,-1755.22,0.00018066,2]
[373427722,1753001445147,-500.0,0.00018175,2]
[373427723,1753001445158,-3026.58022873,0.00018176,2]
[373427724,1753001445168,-150.0,0.00018244,2]
[373427725,1753001445178,-1966.76497909,0.00018265,2]
[373427726,1753001445188,-316.18408268,0.00018306,2]
[373427727,1753001445198,-751.72,0.00018336,2]
[373427728,1753001445208,-460.0,0.00018337,2]
[373427729,1753001445218,-460.0,0.00018337,2]
[373427730,1753001445228,-460.0,0.00018337,2]
[373427731,1753001445238,-460.0,0.00018337,2]
[373427732,1753001445248,-460.0,0.00018337,2]
[373427733,1753001445258,-600.17323963,0.00018337,2]
[373427734,1753001445268,-460.0,0.00018337,2]
[373427735,1753001445278,-1434.46,0.00018337,2]
[373427736,1753001445288,-286.58,0.00018337,2]
[373427737,1753001445298,-460.0,0.00018337,2]
[373427738,1753001445308,-460.0,0.00018337,2]
[373427739,1753001445317,-962.85,0.00018337,2]
[373427740,1753001445327,-460.0,0.00018337,2]
[373427741,1753001445337,-460.0,0.00018337,2]
[373427742,1753001445347,-531.27,0.00018337,2]
[373427743,1753001445357,-466.53,0.00018337,2]
[373427744,1753001445367,-460.0,0.00018337,2]
[373427745,1753001445378,-460.0,0.00018338,2]
[373427746,1753001445388,-460.0,0.00018338,2]
[373427747,1753001445399,-460.0,0.00018338,2]
[373427748,1753001445409,-460.0,0.00018338,2]
[373427749,1753001445418,-350.84263622,0.00018338,2]
[373427750,1753001445428,-460.0,0.00018338,2]
[373427751,1753001445438,-460.0,0.00018338,2]
[373427752,1753001445447,-460.0,0.00018338,2]
[373427754,1753001445458,-460.0,0.00018338,2]
[373427755,1753001445468,-460.0,0.00018338,2]
[373427756,1753001445478,-498.36,0.00018338,2]
[373427757,1753001445488,-1645.4,0.00018339,2]
[373427758,1753001445498,-663.41,0.00018339,2]
[373427759,1753001445508,-460.0,0.00018339,2]
[373427760,1753001445517,-548.92,0.00018339,2]
[373427761,1753001445527,-460.0,0.00018339,2]
[373427762,1753001445536,-500.0,0.00018339,2]
[373427763,1753001445546,-2182.68,0.00018339,2]
[373427764,1753001445556,-891.37,0.00018339,2]
[373427766,1753001445566,-932.02,0.0001834,2]
[373427768,1753001445576,-531.09,0.0001834,2]
[373427769,1753001445586,-1755.22,0.0001834,2]
[373427770,1753001445596,-3026.58022873,0.00018452,2]
[373427771,1753001445605,-751.72,0.0001861,2]
[373427773,1753001445615,-460.0,0.00018611,2]
[373427774,1753001445624,-510.14,0.00018611,2]
[373427775,1753001445634,-460.0,0.00018611,2]
[373427776,1753001445645,-460.0,0.00018611,2]
[373427777,1753001445654,-460.0,0.00018611,2]
[373427778,1753001445668,-1434.46,0.00018611,2]
[373427779,1753001445678,-460.0,0.00018611,2]
[373427780,1753001445688,-460.0,0.00018611,2]
[373427781,1753001445697,-962.85,0.00018611,2]
[373427782,1753001445707,-460.0,0.00018611,2]
[373427783,1753001445717,-460.0,0.00018611,2]
[373427784,1753001445728,-531.27,0.00018611,2]
[373427785,1753001445737,-466.53,0.00018611,2]
[373427786,1753001445747,-342.07541902,0.00018611,2]
[373427787,1753001445756,-460.0,0.00018612,2]
[373427788,1753001445766,-460.0,0.00018612,2]
[373427789,1753001445776,-460.0,0.00018612,2]
[373427790,1753001445785,-460.0,0.00018612,2]
[373427791,1753001445795,-460.0,0.00018612,2]
[373427792,1753001445805,-460.0,0.00018612,2]
[373427793,1753001445814,-460.0,0.00018612,2]
[373427794,1753001445824,-460.0,0.00018612,2]
[373427795,1753001445833,-460.0,0.00018612,2]
[373427796,1753001445844,-498.36,0.00018612,2]
[373427797,1753001445854,-290.94,0.00018612,2]
[373427798,1753001445863,-1645.4,0.00018613,2]
[373427799,1753001445873,-663.41,0.00018613,2]
[373427800,1753001445882,-460.0,0.00018613,2]
[373427801,1753001445891,-548.92,0.00018613,2]
[373427802,1753001445903,-2182.68,0.00018613,2]
[373427803,1753001445913,-891.37,0.00018613,2]
[373427804,1753001445922,-932.02,0.00018614,2]
[373427805,1753001445932,-531.09,0.00018614,2]
[373427806,1753001445941,-1755.22,0.00018614,2]
[373427807,1753001445950,-3026.58022873,0.00018728,2]
[373427808,1753001445960,-160.0,0.00018787,2]
[373427809,1753001445969,-160.0,0.00018787,2]
[373427810,1753001445979,-215.71456056,0.00018787,2]
[373427811,1753001445988,-476.42619115,0.00018787,2]
[373427812,1753001445998,-525.91036056,0.00018787,2]
[373427813,1753001446008,-214.5637056,0.00018787,2]
[373427814,1753001446017,-12615.16111038,0.00018787,2]
[373427815,1753001446027,-230.98123516,0.00018787,2]
[373427816,1753001446037,-839.59621281,0.00018787,2]
[373427817,1753001446047,-160.0,0.00018787,2]
[373427818,1753001446057,-160.0,0.00018787,2]
[373427819,1753001446066,-160.0,0.0001879,2]
[373427820,1753001446078,-160.0,0.0001879,2]
[373427821,1753001446092,-160.0,0.0001879,2]
[373427822,1753001446101,-420.0,0.00018824,2]
[373427823,1753001446110,-1767.84,0.00018875,3]
[373427824,1753001446121,-883.92,0.00018875,3]
[373427825,1753001446130,-441.96,0.00018875,3]
[373427826,1753001446141,-751.72,0.00018884,2]
[373427827,1753001446153,-460.0,0.00018885,2]
[373427828,1753001446162,-460.0,0.00018885,2]
[373427829,1753001446173,-460.0,0.00018885,2]
[373427830,1753001446182,-460.0,0.00018885,2]
[373427831,1753001446192,-1434.46,0.00018885,2]
[373427832,1753001446201,-460.0,0.00018885,2]
[373427833,1753001446211,-460.0,0.00018885,2]
[373427834,1753001446220,-962.85,0.00018885,2]
[373427835,1753001446230,-460.0,0.00018885,2]
[373427836,1753001446239,-460.0,0.00018885,2]
[373427837,1753001446249,-531.27,0.00018885,2]
[373427838,1753001446261,-466.53,0.00018885,2]
[373427839,1753001446270,-460.0,0.00018886,2]
[373427840,1753001446280,-460.0,0.00018886,2]
[373427842,1753001446292,-460.0,0.00018886,2]
[373427844,1753001446302,-460.0,0.00018886,2]
[373427846,1753001446311,-460.0,0.00018886,2]
[373427847,1753001446321,-460.0,0.00018886,2]
[373427849,1753001446330,-460.0,0.00018886,2]
[373427850,1753001446340,-460.0,0.00018886,2]
[373427852,1753001446349,-460.0,0.00018886,2]
[373427853,1753001446358,-498.36,0.00018886,2]
[373427855,1753001446370,-1645.4,0.00018887,2]
[373427857,1753001446379,-663.41,0.00018887,2]
[373427859,1753001446389,-460.0,0.00018887,2]
[373427860,1753001446399,-548.92,0.00018887,2]
[373427862,1753001446409,-2182.68,0.00018887,2]
[373427864,1753001446418,-891.37,0.00018887,2]
[373427865,1753001446428,-932.02,0.00018888,2]
[373427866,1753001446437,-531.09,0.00018888,2]
[373427867,1753001446446,-1755.22,0.00018888,2]
[373427869,1753001446455,-1860.88285313,0.000189,2]
[373427870,1753001446465,-3026.58022873,0.00019003,2]
[373427872,1753001446474,-160.0,0.00019127,2]
[373427873,1753001446485,-751.72,0.00019158,2]
[373427874,1753001446495,-460.0,0.00019159,2]
[373427875,1753001446505,-591.42,0.00019159,2]
[373427876,1753001446515,-460.0,0.00019159,2]
[373427877,1753001446524,-460.0,0.00019159,2]
[373427878,1753001446533,-1434.46,0.00019159,2]
[373427879,1753001446544,-460.0,0.00019159,2]
[373427880,1753001446554,-460.0,0.00019159,2]
[373427881,1753001446564,-962.85,0.00019159,2]
[373427882,1753001446574,-460.0,0.00019159,2]
[373427883,1753001446584,-460.0,0.00019159,2]
[373427884,1753001446593,-531.27,0.00019159,2]
[373427885,1753001446603,-466.53,0.00019159,2]
[373427886,1753001446613,-460.0,0.0001916,2]
[373427887,1753001446622,-391.08496023,0.0001916,2]
[373427888,1753001446631,-460.0,0.0001916,2]
[373427889,1753001446641,-460.0,0.0001916,2]
[373427890,1753001446651,-460.0,0.0001916,2]
[373427891,1753001446660,-460.0,0.0001916,2]
[373427892,1753001446670,-460.0,0.0001916,2]
[373427893,1753001446680,-460.0,0.0001916,2]
[373427894,1753001446689,-498.36,0.0001916,2]
[373427895,1753001446699,-1645.4,0.00019161,2]
[373427896,1753001446709,-663.41,0.00019161,2]
[373427897,1753001446719,-460.0,0.00019161,2]
[373427898,1753001446729,-548.92,0.00019161,2]
[373427899,1753001446738,-2182.68,0.00019161,2]
[373427900,1753001446748,-891.37,0.00019161,2]
[373427901,1753001446757,-932.02,0.00019162,2]
[373427902,1753001446767,-531.09,0.00019162,2]
[373427903,1753001446777,-1755.22,0.00019162,2]
[373427904,1753001446786,-666.0,0.00019178,2]
[373427905,1753001446795,-5000.0,0.00019178,2]
[373427906,1753001446805,-5000.0,0.00019178,2]
[373427907,1753001446815,-1271.84472331,0.00019178,2]
[373427908,1753001446824,-170.999788,0.00019178,2]
[373427909,1753001446834,-3026.58022873,0.00019279,2]
[373427910,1753001446843,-100000.0,0.00019329,2]
[373427911,1753001446853,-179.94602339,0.00019414,2]
[373427912,1753001446863,-751.72,0.00019432,2]
[373427913,1753001446873,-460.0,0.00019433,2]
[373427914,1753001446882,-460.0,0.00019433,2]
[373427915,1753001446892,-460.0,0.00019433,2]
[373427916,1753001446905,-1434.46,0.00019433,2]
[373427917,1753001446915,-460.0,0.00019433,2]
[373427918,1753001446924,-460.0,0.00019433,2]
[373427919,1753001446933,-962.85,0.00019433,2]
[373427920,1753001446942,-460.0,0.00019433,2]
[373427921,1753001446952,-460.0,0.00019433,2]
[373427922,1753001446961,-531.27,0.00019433,2]
[373427923,1753001446971,-466.53,0.00019433,2]
[373427924,1753001446981,-555.33,0.00019434,2]
[373427925,1753001446990,-460.0,0.00019434,2]
[373427926,1753001446999,-460.0,0.00019434,2]
[373427927,1753001447008,-460.0,0.00019434,2]
[373427928,1753001447018,-460.0,0.00019434,2]
[373427929,1753001447028,-460.0,0.00019434,2]
[373427930,1753001447037,-460.0,0.00019434,2]
[373427931,1753001447046,-498.36,0.00019434,2]
[373427932,1753001447056,-1645.4,0.00019435,2]
[373427933,1753001447065,-663.41,0.00019435,2]
[373427934,1753001447076,-460.0,0.00019435,2]
[373427935,1753001447087,-548.92,0.00019435,2]
[373427936,1753001447097,-2182.68,0.00019435,2]
[373427937,1753001447145,-891.37,0.00019435,2]
[373427938,1753001447156,-932.02,0.00019436,2]
[373427939,1753001447166,-531.09,0.00019436,2]
[373427940,1753001447175,-1755.22,0.00019436,2]
[373427941,1753001447184,-316.18408268,0.00019472,2]
[373427942,1753001447193,-3026.58022873,0.00019555,2]
[373427943,1753001447203,-260.0,0.00019675,2]
[373427944,1753001447212,-751.72,0.00019706,2]
[373427945,1753001447223,-460.0,0.00019707,2]
[373427946,1753001447233,-460.0,0.00019707,2]
[373427947,1753001447243,-460.0,0.00019707,2]
[373427948,1753001447253,-1434.46,0.00019707,2]
[373427949,1753001447263,-460.0,0.00019707,2]
[373427950,1753001447272,-460.0,0.00019707,2]
[373427951,1753001447281,-962.85,0.00019707,2]
[373427952,1753001447290,-460.0,0.00019707,2]
[373427953,1753001447300,-367.93,0.00019707,2]
[373427954,1753001447309,-531.27,0.00019707,2]
[373427955,1753001447319,-466.53,0.00019707,2]
[373427956,1753001447328,-460.0,0.00019708,2]
[373427957,1753001447337,-460.0,0.00019708,2]
[373427958,1753001447347,-460.0,0.00019708,2]
[373427959,1753001447356,-460.0,0.00019708,2]
[373427960,1753001447366,-460.0,0.00019708,2]
[373427961,1753001447375,-460.0,0.00019708,2]
[373427962,1753001447385,-498.36,0.00019708,2]
[373427963,1753001447394,-1645.4,0.00019709,2]
[373427964,1753001447405,-663.41,0.00019709,2]
[373427965,1753001447414,-460.0,0.00019709,2]
[373427966,1753001447424,-548.92,0.00019709,2]
[373427967,1753001447434,-2182.68,0.00019709,2]
[373427968,1753001447443,-891.37,0.00019709,2]
[373427969,1753001447452,-932.02,0.0001971,2]
[373427970,1753001447461,-531.09,0.0001971,2]
[373427971,1753001447470,-1755.22,0.0001971,2]
[373427972,1753001447479,-3026.58022873,0.00019831,2]
[373427973,1753001447489,-572.36419674,0.00019868,2]
[373427974,1753001447498,-751.72,0.0001998,2]
[373427975,1753001447507,-484.91239098,0.00019981,2]
[373427976,1753001447516,-460.0,0.00019981,2]
[373427977,1753001447526,-460.0,0.00019981,2]
[373427978,1753001447535,-1434.46,0.00019981,2]
[373427979,1753001447545,-460.0,0.00019981,2]
[373427980,1753001447554,-460.0,0.00019981,2]
[373427981,1753001447564,-962.85,0.00019981,2]
[373427982,1753001447573,-460.0,0.00019981,2]
[373427983,1753001447583,-531.27,0.00019981,2]
[373427984,1753001447593,-466.53,0.00019981,2]
[373427985,1753001447602,-460.0,0.00019982,2]
[373427986,1753001447611,-522.50904119,0.00019982,2]
[373427987,1753001447622,-460.0,0.00019982,2]
[373427988,1753001447630,-460.0,0.00019982,2]
[373427989,1753001447639,-460.0,0.00019982,2]
[373427990,1753001447650,-460.0,0.00019982,2]
[373427991,1753001447659,-498.36,0.00019982,2]
[373427992,1753001447668,-1645.4,0.00019983,2]
[373427993,1753001447682,-663.41,0.00019983,2]
[373427994,1753001447691,-460.0,0.00019983,2]
[373427995,1753001447700,-548.92,0.00019983,2]
[373427996,1753001447711,-2182.68,0.00019983,2]
[373427997,1753001447720,-891.37,0.00019983,2]
[373427998,1753001447730,-932.02,0.00019984,2]
[373427999,1753001447739,-531.09,0.00019984,2]
[373428000,1753001447750,-1755.22,0.00019984,2]
[373428001,1753001447760,-18221.82332812,0.0002,14]
[373428002,1753001447769,-506.73499596,0.0002005,2]
[373428003,1753001447779,-3026.58022873,0.00020107,2]
[373428004,1753001447791,-5000.0,0.00020165,2]
[373428005,1753001447801,-500.0,0.00020169,2]
[373428006,1753001447812,-503.28821453,0.00020169,2]
[373428007,1753001447821,-503.69047879,0.00020169,2]
[373428008,1753001447831,-163.646828,0.00020187,2]
[373428009,1753001447840,-360.0,0.00020223,2]
[373428010,1753001447850,-751.72,0.00020254,2]
[373428011,1753001447859,-460.0,0.00020255,2]
[373428012,1753001447868,-511.14928852,0.00020255,2]
[373428013,1753001447877,-1434.46,0.00020255,2]
[373428014,1753001447887,-460.0,0.00020255,2]
[373428015,1753001447897,-460.0,0.00020255,2]
[373428016,1753001447907,-962.85,0.00020255,2]
[373428017,1753001447916,-460.0,0.00020255,2]
[373428018,1753001447925,-531.27,0.00020255,2]
[373428019,1753001447935,-466.53,0.00020255,2]
[373428020,1753001447944,-537.33,0.00020256,2]
[373428021,1753001447953,-460.0,0.00020256,2]
[373428022,1753001447963,-460.0,0.00020256,2]
[373428023,1753001447972,-460.0,0.00020256,2]
[373428024,1753001447982,-460.0,0.00020256,2]
[373428025,1753001447991,-498.36,0.00020256,2]
[373428026,1753001448000,-1645.4,0.00020257,2]
[373428027,1753001448010,-663.41,0.00020257,2]
[373428028,1753001448020,-460.0,0.00020257,2]
[373428029,1753001448030,-548.92,0.00020257,2]
[373428030,1753001448040,-2182.68,0.00020257,2]
[373428031,1753001448049,-891.37,0.00020257,2]
[373428032,1753001448058,-932.02,0.00020258,2]
[373428033,1753001448068,-531.09,0.00020258,2]
[373428034,1753001448080,-1755.22,0.00020258,2]
[373428035,1753001448090,-502.98193217,0.00020311,2]
[373428036,1753001448099,-3026.58022873,0.00020383,3]
[373428037,1753001448109,-751.72,0.00020528,2]
[373428038,1753001448119,-460.0,0.00020529,2]
[373428039,1753001448129,-1434.46,0.00020529,2]
[373428040,1753001448139,-460.0,0.00020529,2]
[373428041,1753001448151,-460.0,0.00020529,2]
[373428042,1753001448161,-962.85,0.00020529,2]
[373428043,1753001448171,-460.0,0.00020529,2]
[373428044,1753001448181,-531.27,0.00020529,2]
[373428045,1753001448191,-466.53,0.00020529,2]
[373428046,1753001448200,-360.72,0.0002053,2]
[373428047,1753001448210,-377.11335763,0.0002053,2]
[373428048,1753001448219,-460.0,0.0002053,2]
[373428049,1753001448229,-460.0,0.0002053,2]
[373428050,1753001448239,-498.36,0.0002053,2]
[373428051,1753001448249,-1645.4,0.00020531,2]
[373428052,1753001448258,-663.41,0.00020531,2]
[373428053,1753001448268,-584.19215744,0.00020531,2]
[373428054,1753001448277,-548.92,0.00020531,2]
[373428055,1753001448287,-2182.68,0.00020531,2]
[373428056,1753001448298,-891.37,0.00020531,2]
[373428057,1753001448308,-932.02,0.00020532,2]
[373428058,1753001448317,-531.09,0.00020532,2]
[373428059,1753001448327,-1755.22,0.00020532,2]
[373428060,1753001448337,-587.0,0.00020555,2]
[373428061,1753001448346,-215.0738,0.00020605,2]
[373428062,1753001448356,-151.0,0.00020605,2]
[373428063,1753001448366,-151.0,0.00020605,2]
[373428064,1753001448376,-151.0,0.00020605,2]
[373428065,1753001448385,-151.0,0.00020605,2]
[373428066,1753001448396,-151.0,0.00020605,2]
[373428067,1753001448406,-151.0,0.00020605,2]
[373428068,1753001448415,-151.0,0.00020605,2]
[373428069,1753001448425,-151.0,0.00020605,2]
[373428070,1753001448435,-151.0,0.00020605,2]
[373428071,1753001448444,-151.0,0.00020605,2]
[373428072,1753001448454,-151.0,0.00020605,2]
[373428073,1753001448464,-151.0,0.00020605,2]
[373428074,1753001448473,-151.0,0.00020605,2]
[373428075,1753001448483,-151.0,0.00020605,2]
[373428076,1753001448493,-151.0,0.00020605,2]
[373428077,1753001448503,-151.0,0.00020605,2]
[373428078,1753001448512,-151.0,0.00020605,2]
[373428079,1753001448522,-151.0,0.00020605,2]
[373428080,1753001448532,-151.0,0.00020605,2]
[373428081,1753001448542,-151.0,0.00020605,2]
[373428082,1753001448552,-25000.0,0.00020605,2]
[373428083,1753001448562,-16891.41418974,0.00020605,2]
[373428084,1753001448571,-274.06147548,0.00020609,2]
[373428085,1753001448581,-316.18408268,0.00020637,2]
[373428086,1753001448591,-3026.58022873,0.00020659,3]
[373428087,1753001448600,-12615.16111038,0.0002066,3]
[373428088,1753001448609,-476.42619115,0.0002066,3]
[373428089,1753001448620,-214.5637056,0.0002066,3]
[373428090,1753001448630,-1013.36135234,0.00020717,2]
[373428091,1753001448639,-260.0,0.00020771,2]
[373428092,1753001448650,-751.72,0.00020802,2]
[373428093,1753001448660,-460.0,0.00020803,2]
[373428094,1753001448669,-1434.46,0.00020803,2]
[373428095,1753001448679,-460.0,0.00020803,2]
[373428096,1753001448689,-460.0,0.00020803,2]
[373428097,1753001448699,-962.85,0.00020803,2]
[373428098,1753001448709,-362.42839026,0.00020803,2]
[373428099,1753001448720,-531.27,0.00020803,2]
[373428100,1753001448729,-466.53,0.00020803,2]
[373428101,1753001448739,-460.0,0.00020804,2]
[373428102,1753001448749,-460.0,0.00020804,2]
[373428103,1753001448760,-498.36,0.00020804,2]
[373428104,1753001448770,-1645.4,0.00020805,2]
[373428105,1753001448779,-663.41,0.00020805,2]
[373428106,1753001448789,-548.92,0.00020805,2]
[373428107,1753001448798,-2182.68,0.00020805,2]
[373428108,1753001448808,-891.37,0.00020805,2]
[373428109,1753001448817,-932.02,0.00020806,2]
[373428110,1753001448827,-531.09,0.00020806,2]
[373428111,1753001448837,-1755.22,0.00020806,2]
[373428112,1753001448847,-745.814,0.00020812,2]
[373428113,1753001448856,-3026.58022873,0.00020934,4]
[373428114,1753001448865,-500.0,0.00021064,2]
[373428115,1753001448875,-751.72,0.00021076,2]
[373428116,1753001448884,-460.0,0.00021077,2]
[373428117,1753001448894,-1434.46,0.00021077,2]
[373428118,1753001448904,-460.0,0.00021077,2]
[373428119,1753001448914,-460.0,0.00021077,2]
[373428120,1753001448923,-962.85,0.00021077,2]
[373428121,1753001448933,-531.27,0.00021077,2]
[373428122,1753001448942,-466.53,0.00021077,2]
[373428123,1753001448951,-460.0,0.00021078,2]
[373428124,1753001448961,-460.0,0.00021078,2]
[373428125,1753001448972,-498.36,0.00021078,2]
[373428126,1753001448982,-1645.4,0.00021079,2]
[373428127,1753001448992,-663.41,0.00021079,2]
[373428128,1753001449003,-548.92,0.00021079,2]
[373428129,1753001449013,-2182.68,0.00021079,2]
[373428130,1753001449023,-891.37,0.00021079,2]
[373428131,1753001449032,-151.0,0.0002108,2]
[373428132,1753001449042,-151.0,0.0002108,2]
[373428133,1753001449052,-151.0,0.0002108,2]
[373428134,1753001449062,-258.110964,0.0002108,2]
[373428135,1753001449072,-932.02,0.0002108,2]
[373428136,1753001449085,-531.09,0.0002108,2]
[373428137,1753001449095,-1755.22,0.0002108,2]
[373428138,1753001449105,-3026.58022873,0.0002121,4]
[373428139,1753001449115,-751.72,0.0002135,2]
[373428140,1753001449125,-460.0,0.00021351,2]
[373428141,1753001449135,-1434.46,0.00021351,2]
[373428142,1753001449145,-460.0,0.00021351,2]
[373428143,1753001449157,-460.0,0.00021351,2]
[373428144,1753001449167,-962.85,0.00021351,2]
[373428145,1753001449177,-531.27,0.00021351,2]
[373428146,1753001449188,-466.53,0.00021351,2]
[373428147,1753001449198,-460.0,0.00021352,2]
[373428148,1753001449208,-460.0,0.00021352,2]
[373428149,1753001449218,-498.36,0.00021352,2]
[373428150,1753001449228,-1645.4,0.00021353,2]
[373428151,1753001449238,-663.41,0.00021353,2]
[373428152,1753001449248,-548.92,0.00021353,2]
[373428153,1753001449259,-2182.68,0.00021353,2]
[373428154,1753001449269,-891.37,0.00021353,2]
[373428155,1753001449279,-932.02,0.00021354,2]
[373428156,1753001449288,-531.09,0.00021354,2]
[373428157,1753001449298,-1755.22,0.00021354,2]
[373428158,1753001449309,-10529.67369734,0.00021377,2]
[373428159,1753001449322,-3026.58022873,0.00021486,5]
[373428160,1753001449332,-243.49443034,0.00021544,2]
[373428161,1753001449342,-751.72,0.00021624,2]
[373428162,1753001449351,-460.0,0.00021625,2]
[373428163,1753001449362,-1434.46,0.00021625,2]
[373428164,1753001449371,-460.0,0.00021625,2]
[373428165,1753001449381,-460.0,0.00021625,2]
[373428166,1753001449391,-962.85,0.00021625,2]
[373428167,1753001449402,-531.27,0.00021625,2]
[373428168,1753001449412,-466.53,0.00021625,2]
[373428169,1753001449422,-460.0,0.00021626,2]
[373428170,1753001449431,-460.0,0.00021626,2]
[373428171,1753001449442,-498.36,0.00021626,2]
[373428172,1753001449452,-1645.4,0.00021627,2]
[373428173,1753001449461,-663.41,0.00021627,2]
[373428174,1753001449471,-548.92,0.00021627,2]
[373428175,1753001449482,-2182.68,0.00021627,2]
[373428176,1753001449493,-891.37,0.00021627,2]
[373428177,1753001449503,-932.02,0.00021628,2]
[373428178,1753001449513,-531.09,0.00021628,2]
[373428179,1753001449523,-1755.22,0.00021628,2]
[373428180,1753001449533,-3026.58022873,0.00021762,5]
[373428181,1753001449542,-316.18408268,0.00021803,2]
[373428182,1753001449552,-751.72,0.00021898,2]
[373428183,1753001449562,-398.98,0.00021899,2]
[373428184,1753001449573,-1434.46,0.00021899,2]
[373428185,1753001449582,-460.0,0.00021899,2]
[373428186,1753001449592,-460.0,0.00021899,2]
[373428187,1753001449601,-962.85,0.00021899,2]
[373428188,1753001449611,-531.27,0.00021899,2]
[373428189,1753001449620,-466.53,0.00021899,2]
[373428190,1753001449629,-460.0,0.000219,2]
[373428191,1753001449639,-460.0,0.000219,2]
[373428192,1753001449649,-498.36,0.000219,2]
[373428193,1753001449659,-1645.4,0.00021901,2]
[373428194,1753001449672,-663.41,0.00021901,2]
[373428195,1753001449681,-548.92,0.00021901,2]
[373428196,1753001449691,-2182.68,0.00021901,2]
[373428197,1753001449701,-891.37,0.00021901,2]
[373428198,1753001449711,-932.02,0.00021902,2]
[373428199,1753001449721,-531.09,0.00021902,2]
[373428200,1753001449731,-1755.22,0.00021902,2]
[373428201,1753001449751,-223.0315306,0.00021974,2]
[373428202,1753001449762,-160.0,0.00022,2]
[373428203,1753001449773,-44611.19,0.00022,2]
[373428204,1753001449785,-3026.58022873,0.00022038,6]
[373428205,1753001449795,-751.72,0.00022172,2]
[373428206,1753001449806,-1434.46,0.00022173,2]
[373428207,1753001449817,-460.0,0.00022173,2]